[Event "Tatry Open 2018"]
[Site "Tatranska Lomnica"]
[Date "2018.10.03"]
[Round "5"]
[White "Plug, Arjan"]
[Black "Parligras, Cosmin"]
[Result "0-1"]
[ECO "B12"]
[WhiteElo "1859"]
[BlackElo "2203"]
[Annotator "RC"]
[PlyCount "44"]
[EventDate "2018.09.30"]
[EventType "swiss"]
[EventCountry "SVK"]
[SourceTitle "playchess.com"]
[Source "ChessBase"]
[SourceQuality "1"]
[TimeControl "40/5400+30:1800+30"]

1. e4 {[%emt 0:00:00]} c6 {[%emt 0:03:32]} 2. d4 {[%emt 0:03:37]} g6 {[%emt 0:00:07]} 3. Nf3 {[%emt 0:00:40]} Bg7 {[%emt 0:00:38]} 4. Be2 {[%emt 0:00:42]} d6 {[%emt 0:00:41]} 5. O-O {[%emt 0:01:12]} Nf6 {[%emt 0:00:09]} 6. Nc3 {[%emt 0:04:11]} O-O {[%emt 0:00:10]} 7. Be3 {[%emt 0:00:54]} Qc7 {[%emt 0:02:59]} 8. Qd2 {[%emt 0:01:00]} Re8 {[%emt 0:01:53]} 9. Bg5 {[%emt 0:05:14]} Nbd7 {[%emt 0:00:38]} 10. Rfe1 {[%emt 0:05:42]} e5 {[%emt 0:03:59]} 11. dxe5 {[%emt 0:02:24]} dxe5 {[%emt 0:00:29]} 12. Bc4 {[%emt 0:00:44]} Nf8 {[%emt 0:02:42]} 13. Rad1 {[%emt 0:07:46]} Be6 {[%emt 0:06:03]} 14. Bxe6 {[%emt 0:04:23]} Nxe6 {[%emt 0:00:16]} 15. h3 {[%emt 0:03:19]} Rad8 {[%emt 0:01:12]} 16. Qe3 {[%emt 0:01:05]} Nxg5 {[%emt 0:05:24]} 17. Qxg5 {[%emt 0:01:36]} Nh5 {[%emt 0:01:03]} 18. Qe3 {[%emt 0:04:36]} b6 {[%emt 0:00:22]} 19. g3 {[%emt 0:00:15]} Bf8 {[%emt 0:00:54]} 20. Kg2 {[%emt 0:00:58]} Bc5 {[%emt 0:08:15]} 21. Qh6 {[%emt 0:01:41]} f6 {[%emt 0:00:58]} 22. Nh4 {[%emt 0:05:02]} Nf4+ {[%emt 0:00:20]} 0-1

[Event "Tatry Open 2018"]
[Site "Tatranska Lomnica"]
[Date "2018.10.03"]
[Round "5"]
[White "Recky, Norbert"]
[Black "Steiner, Bruno"]
[Result "0-1"]
[ECO "C77"]
[WhiteElo "1789"]
[BlackElo "2075"]
[Annotator "NA RC"]
[PlyCount "60"]
[EventDate "2018.09.30"]
[EventType "swiss"]
[EventCountry "SVK"]
[SourceTitle "playchess.com"]
[Source "ChessBase"]
[SourceQuality "1"]
[TimeControl "40/5400+30:1800+30"]

1. e4 {[%emt 0:00:00]} e5 {[%emt 0:00:40]} 2. Nf3 {[%emt 0:00:00]} Nc6 {[%emt 0:00:12]} 3. Bb5 {[%emt 0:00:00]} a6 {[%emt 0:00:16]} 4. Ba4 {[%emt 0:00:00]} Nf6 {[%emt 0:00:22]} 5. d3 {[%emt 0:00:29]} b5 {[%emt 0:00:20]} 6. Bb3 {[%emt 0:00:13]} Bc5 {[%emt 0:00:08]} 7. O-O {[%emt 0:01:18]} d6 {[%emt 0:01:05]} 8. a4 {[%emt 0:00:36]} Rb8 {[%emt 0:00:47] C78: Ruy Lopez: Archangelsk and Möller Defences} 9. h3 {[%emt 0:00:42]} Ne7 {[%emt 0:00:50]} 10. Re1 {[%emt 0:05:40]} O-O {[%emt 0:07:43]} 11. Nbd2 {[%emt 0:01:53]} Ng6 {[%emt 0:02:18]} 12. Nf1 {[%emt 0:01:59]} Be6 $146 {[%emt 0:00:28]} ({Predecessor:} 12... h6 13. Ne3 Be6 14. c3 Bxb3 15. Qxb3 {1-0 (46) Adams,M (2737)-Leko,P (2763) Miskolc 2005}) 13. d4 {[%emt 0:07:07]} exd4 {[%emt 0:05:09]} 14. Nxd4 {[%emt 0:06:56]} Bxd4 {[%emt 0:01:03]} 15. Qxd4 {[%emt 0:00:14]} Nd7 {[%emt 0:00:14]} 16. Bd5 {[%emt 0:01:15]} c5 {[%emt 0:03:17]} 17. Qd1 {[%emt 0:00:37]} Bxd5 {[%emt 0:00:11]} 18. exd5 {[%emt 0:01:12]} Qf6 {[%emt 0:01:00]} 19. axb5 {[%emt 0:03:05]} axb5 {[%emt 0:00:12]} 20. Ra7 {[%emt 0:00:16]} Nb6 {[%emt 0:02:52]} 21. b3 {[%emt 0:02:03]} b4 {[%emt 0:00:12]} 22. Ne3 {[%emt 0:02:28]} Rfe8 {[%emt 0:04:55]} 23. Qd2 {[%emt 0:05:34]} h6 {[%emt 0:04:35]} 24. Rd1 {[%emt 0:00:21]} Re4 {[%emt 0:31:27]} 25. Ng4 {[%emt 0:11:11]} Qh4 {[%emt 0:01:34]} 26. Bb2 {[%emt 0:03:24]} Rbe8 {[%emt 0:03:17]} 27. Ne3 $2 {[%emt 0:02:37]} (27. Bf6 $1 $11 {und Weiss muss sich keine Sorgen machen.} Qh5 28. Rb7) 27... Nf4 {[%emt 0:08:28]} 28. Nf5 $2 {[%emt 0:07:02]} (28. Kh2 c4 29. bxc4) 28... Qg5 {[%emt 0:01:02]} 29. Ng3 {[%emt 0:01:31]} Nbxd5 {[%emt 0:03:12]} 30. Kh2 {[%emt 0:02:06] [#]} Re2 $19 {[%emt 0:02:33]} 0-1

[Event "Tatry Open 2018"]
[Site "Tatranska Lomnica"]
[Date "2018.10.03"]
[Round "5"]
[White "Aleksandravicius, Darius"]
[Black "Macko, Michal"]
[Result "0-1"]
[ECO "A06"]
[WhiteElo "1667"]
[BlackElo "2187"]
[Annotator "RC"]
[PlyCount "80"]
[EventDate "2018.09.30"]
[EventType "swiss"]
[EventCountry "SVK"]
[SourceTitle "playchess.com"]
[Source "ChessBase"]
[SourceQuality "1"]
[TimeControl "40/5400+30:1800+30"]

1. Nf3 {[%emt 0:00:00]} d5 {[%emt 0:00:00]} 2. g3 {[%emt 0:00:00]} Nf6 {[%emt 0:00:00]} 3. Bg2 {[%emt 0:00:09]} e6 {[%emt 0:00:02]} 4. O-O {[%emt 0:00:15]} Be7 {[%emt 0:00:02]} 5. d3 {[%emt 0:00:40]} O-O {[%emt 0:00:08]} 6. Bg5 {[%emt 0:00:18]} h6 {[%emt 0:02:54]} 7. Bxf6 {[%emt 0:03:02]} Bxf6 {[%emt 0:00:35]} 8. c3 {[%emt 0:00:11]} c5 {[%emt 0:00:15]} 9. Nbd2 {[%emt 0:00:16]} Nc6 {[%emt 0:00:21]} 10. e4 {[%emt 0:00:35]} b5 {[%emt 0:04:56]} 11. Qe2 {[%emt 0:00:35]} a5 {[%emt 0:01:03]} 12. e5 {[%emt 0:01:13]} Be7 {[%emt 0:00:06]} 13. h4 {[%emt 0:05:04]} Ba6 {[%emt 0:06:19]} 14. Nh2 {[%emt 0:08:17]} b4 {[%emt 0:04:46]} 15. f4 {[%emt 0:03:21]} Rb8 {[%emt 0:01:10]} 16. f5 {[%emt 0:05:44]} exf5 {[%emt 0:03:38]} 17. Rxf5 {[%emt 0:00:54]} Bc8 {[%emt 0:00:03]} 18. Rf2 {[%emt 0:06:26]} bxc3 {[%emt 0:00:13]} 19. bxc3 {[%emt 0:00:29]} Rb2 {[%emt 0:00:09]} 20. Qh5 {[%emt 0:03:15]} Be6 {[%emt 0:05:21]} 21. Raf1 {[%emt 0:35:38]} Rxa2 {[%emt 0:07:29]} 22. Ng4 {[%emt 0:01:35]} Bxg4 {[%emt 0:01:44]} 23. Qxg4 {[%emt 0:00:20]} Nxe5 {[%emt 0:01:14]} 24. Qf5 {[%emt 0:01:01]} Qd6 {[%emt 0:07:15]} 25. d4 {[%emt 0:03:38]} cxd4 {[%emt 0:03:02]} 26. cxd4 {[%emt 0:00:10]} Nd7 {[%emt 0:00:34]} 27. Qxd5 {[%emt 0:00:50]} Rc2 {[%emt 0:11:32]} 28. Rxf7 {[%emt 0:08:20]} Rxf7 {[%emt 0:06:48]} 29. Qxf7+ {[%emt 0:01:30]} Kh8 {[%emt 0:00:09]} 30. Qe8+ {[%emt 0:01:58]} Bf8 {[%emt 0:00:52]} 31. Nb3 {[%emt 0:04:04]} Nf6 {[%emt 0:06:04]} 32. Qa8 {[%emt 0:03:15]} a4 {[%emt 0:00:39]} 33. Na5 {[%emt 0:01:35]} a3 {[%emt 0:02:07]} 34. Nb7 {[%emt 0:01:04]} Qxg3 {[%emt 0:00:24]} 35. Nd8 {[%emt 0:01:05]} a2 {[%emt 0:05:14]} 36. Nf7+ {[%emt 0:00:27]} Kg8 {[%emt 0:00:50]} 37. Ne5 {[%emt 0:00:37]} a1=Q {[%emt 0:03:14]} 38. Rxa1 {[%emt 0:00:28]} Qf2+ {[%emt 0:00:05]} 39. Kh1 {[%emt 0:00:36]} Qxh4+ {[%emt 0:00:06]} 40. Kg1 {[%emt 0:00:16]} Qxd4+ {[%emt 0:00:05]} 0-1

[Event "Tatry Open 2018"]
[Site "Tatranska Lomnica"]
[Date "2018.10.04"]
[Round "6"]
[White "Zatko, Gregor"]
[Black "Ruzicka, Milan"]
[Result "1-0"]
[ECO "D00"]
[WhiteElo "2194"]
[BlackElo "2037"]
[Annotator "RC"]
[PlyCount "119"]
[EventDate "2018.09.30"]
[EventType "swiss"]
[EventCountry "SVK"]
[SourceTitle "playchess.com"]
[Source "ChessBase"]
[SourceQuality "1"]
[TimeControl "40/5400+30:1800+30"]

1. d4 {[%emt 0:00:00]} d5 {[%emt 0:00:00]} 2. Bf4 {[%emt 0:00:00]} Nf6 {[%emt 0:00:00]} 3. e3 {[%emt 0:00:00]} Bf5 {[%emt 0:00:39]} 4. c4 {[%emt 0:00:00]} e6 {[%emt 0:01:24]} 5. Nc3 {[%emt 0:00:00]} c6 {[%emt 0:03:41]} 6. Nf3 {[%emt 0:00:17]} Nbd7 {[%emt 0:00:30]} 7. Qb3 {[%emt 0:00:04]} Qc8 {[%emt 0:04:35]} 8. h3 {[%emt 0:02:43]} Be7 {[%emt 0:00:42]} 9. Be2 {[%emt 0:00:45]} O-O {[%emt 0:00:27]} 10. O-O {[%emt 0:00:15]} h6 {[%emt 0:02:12]} 11. Rac1 {[%emt 0:00:06]} a6 {[%emt 0:00:37]} 12. Nd2 {[%emt 0:07:42]} Re8 {[%emt 0:01:35]} 13. f3 {[%emt 0:02:14]} dxc4 {[%emt 0:06:00]} 14. Nxc4 {[%emt 0:04:34]} b5 {[%emt 0:00:47]} 15. Nd6 {[%emt 0:02:51]} Bxd6 {[%emt 0:03:44]} 16. Bxd6 {[%emt 0:00:05]} Qb7 {[%emt 0:03:17]} 17. e4 {[%emt 0:01:41]} Bg6 {[%emt 0:00:59]} 18. e5 {[%emt 0:01:40]} Nd5 {[%emt 0:08:22]} 19. Ne4 {[%emt 0:01:36]} Rac8 {[%emt 0:04:54]} 20. g3 {[%emt 0:07:22]} Red8 {[%emt 0:14:36]} 21. Rfd1 {[%emt 0:05:38]} Re8 {[%emt 0:09:59]} 22. Bd3 {[%emt 0:05:09]} Bxe4 {[%emt 0:05:18]} 23. fxe4 {[%emt 0:01:16]} N5b6 {[%emt 0:00:48]} 24. Qc2 {[%emt 0:02:45]} c5 {[%emt 0:03:42]} 25. dxc5 {[%emt 0:03:43]} Nc4 {[%emt 0:00:47]} 26. Bxc4 {[%emt 0:04:57]} bxc4 {[%emt 0:00:03]} 27. Qxc4 {[%emt 0:02:04]} Qxb2 {[%emt 0:00:09]} 28. Rc2 {[%emt 0:17:01]} Nxe5 {[%emt 0:00:36]} 29. Qe2 {[%emt 0:00:07]} Qa3 {[%emt 0:07:26]} 30. Bxe5 {[%emt 0:01:18]} Rxc5 {[%emt 0:00:13]} 31. Rxc5 {[%emt 0:00:26]} Qxc5+ {[%emt 0:00:06]} 32. Bd4 {[%emt 0:00:04]} Qc6 {[%emt 0:01:41]} 33. Bf2 {[%emt 0:02:24]} Rb8 {[%emt 0:00:37]} 34. Re1 {[%emt 0:05:46]} a5 {[%emt 0:00:25]} 35. e5 {[%emt 0:03:05]} Qc3 {[%emt 0:01:03]} 36. Qe3 {[%emt 0:00:51]} Qc2 {[%emt 0:01:00]} 37. Re2 {[%emt 0:05:15]} Rb1+ {[%emt 0:00:40]} 38. Kh2 {[%emt 0:00:20]} Qc6 {[%emt 0:03:06]} 39. Bg1 {[%emt 0:00:44]} a4 {[%emt 0:03:03]} 40. Rd2 {[%emt 0:04:43]} Rc1 {[%emt 0:01:28]} 41. Qd3 {[%emt 0:32:25]} Rc3 {[%emt 0:32:33]} 42. Qe2 {[%emt 0:02:37]} a3 {[%emt 0:00:58]} 43. Bd4 {[%emt 0:00:21]} Rc1 {[%emt 0:01:45]} 44. Qg2 {[%emt 0:00:02]} Qc4 {[%emt 0:01:34]} 45. Qf3 {[%emt 0:00:00]} Qb4 {[%emt 0:00:00]} 46. Be3 {[%emt 0:00:00]} Rb1 {[%emt 0:00:00]} 47. Rf2 {[%emt 0:00:00]} Qe1 {[%emt 0:00:00]} 48. Rd2 {[%emt 0:00:00]} Rb2 {[%emt 0:00:00]} 49. Qf2 {[%emt 0:00:00]} Qb1 {[%emt 0:00:00]} 50. Bd4 {[%emt 0:00:00]} Rb5 {[%emt 0:00:00]} 51. Bc5 {[%emt 0:00:00]} Qe4 {[%emt 0:00:00]} 52. Bxa3 {[%emt 0:01:00]} Rb1 {[%emt 0:00:00]} 53. Qg2 {[%emt 0:00:19]} Qxe5 {[%emt 0:02:29]} 54. Rd8+ {[%emt 0:01:22]} Kh7 {[%emt 0:00:03]} 55. Qc2+ {[%emt 0:00:09]} Qf5 56. Qxf5+ {[%emt 0:00:07]} exf5 {[%emt 0:00:14]} 57. Rd2 {[%emt 0:00:40]} g5 {[%emt 0:00:56]} 58. Bb2 {[%emt 0:00:16]} Re1 {[%emt 0:00:29]} 59. a4 {[%emt 0:01:23]} Re4 {[%emt 0:00:19]} 60. Bd4 {[%emt 0:00:04]} 1-0

[Event "Tatry Open 2018"]
[Site "Tatranska Lomnica"]
[Date "2018.10.05"]
[Round "7"]
[White "Malik, Jan"]
[Black "Parligras, Cosmin"]
[Result "1/2-1/2"]
[ECO "B34"]
[WhiteElo "2300"]
[BlackElo "2203"]
[Annotator "NA"]
[PlyCount "37"]
[EventDate "2018.09.30"]
[EventType "swiss"]
[EventCountry "SVK"]
[SourceTitle "playchess.com"]
[Source "ChessBase"]
[SourceQuality "1"]
[TimeControl "40/5400+30:1800+30"]

1. e4 {[%emt 0:00:00]} c5 {[%emt 0:03:57]} 2. Nf3 {[%emt 0:00:00]} Nc6 {[%emt 0:00:07]} 3. d4 {[%emt 0:00:00]} cxd4 {[%emt 0:00:09]} 4. Nxd4 {[%emt 0:00:00]} Nf6 {[%emt 0:00:07]} 5. Nc3 {[%emt 0:00:00]} e5 {[%emt 0:00:07]} 6. Ndb5 {[%emt 0:00:05]} d6 {[%emt 0:00:12] LiveBook: 14991 Games} 7. a4 {[%emt 0:00:19]} a6 {[%emt 0:00:20]} 8. Na3 {[%emt 0:00:02]} Bg4 {[%emt 0:00:09]} 9. Be2 {[%emt 0:00:50]} Bxe2 {[%emt 0:00:10]} 10. Qxe2 {[%emt 0:00:02]} d5 {[%emt 0:00:14]} 11. exd5 {[%emt 0:01:39]} Nxd5 {[%emt 0:00:07]} 12. Nxd5 $11 {[%emt 0:01:22]} Qxd5 {[%emt 0:00:07]} 13. O-O {[%emt 0:00:22]} Nd4 {[%emt 0:00:07]} 14. Qd3 {[%emt 0:01:49]} Rd8 {[%emt 0:00:14]} 15. Be3 {[%emt 0:12:57]} e4 {[%emt 0:00:45]} 16. Qc4 {[%emt 0:10:25]} Bxa3 {[%emt 0:00:29]} 17. Qxd5 {[%emt 0:00:06]} Rxd5 {[%emt 0:00:14]} 18. Bxd4 {[%emt 0:00:16]} Rxd4 {[%emt 0:00:09]} 19. Rxa3 {[%emt 0:00:23]} 1/2-1/2

[Event "Tatry Open 2018"]
[Site "Tatranska Lomnica"]
[Date "2018.10.05"]
[Round "7"]
[White "Kostolansky, Sebastian Lukas"]
[Black "Berezjuk, Sergej"]
[Result "1/2-1/2"]
[ECO "C77"]
[WhiteElo "2209"]
[BlackElo "2427"]
[Annotator "RC"]
[PlyCount "185"]
[EventDate "2018.09.30"]
[EventType "swiss"]
[EventCountry "SVK"]
[SourceTitle "playchess.com"]
[Source "ChessBase"]
[SourceQuality "1"]
[TimeControl "40/5400+30:1800+30"]

1. e4 {[%emt 0:00:00]} e5 {[%emt 0:00:40]} 2. Nf3 {[%emt 0:00:00]} Nc6 {[%emt 0:00:02]} 3. Bb5 {[%emt 0:00:00]} a6 {[%emt 0:00:01]} 4. Ba4 {[%emt 0:00:06]} Nf6 {[%emt 0:00:07]} 5. d3 {[%emt 0:00:06]} d6 {[%emt 0:00:07]} 6. c3 {[%emt 0:00:04]} g6 {[%emt 0:00:08]} 7. O-O {[%emt 0:00:18]} Bg7 {[%emt 0:00:04]} 8. Re1 {[%emt 0:02:35]} O-O {[%emt 0:05:31]} 9. Bg5 {[%emt 0:02:12]} h6 {[%emt 0:00:07]} 10. Bh4 {[%emt 0:00:07]} b5 {[%emt 0:15:07]} 11. Bc2 {[%emt 0:03:03]} Bb7 {[%emt 0:00:39]} 12. Nbd2 {[%emt 0:00:53]} Qe8 {[%emt 0:08:54]} 13. a4 {[%emt 0:08:50]} Nh5 {[%emt 0:00:40]} 14. Nf1 {[%emt 0:08:14]} f5 {[%emt 0:01:57]} 15. exf5 {[%emt 0:07:14]} gxf5 {[%emt 0:01:12]} 16. d4 {[%emt 0:19:35]} e4 {[%emt 0:03:13]} 17. N3d2 {[%emt 0:09:41]} Na5 {[%emt 0:08:53]} 18. axb5 {[%emt 0:09:15]} axb5 {[%emt 0:00:48]} 19. Ne3 {[%emt 0:01:42]} d5 {[%emt 0:16:22]} 20. f3 {[%emt 0:03:07]} Qg6 {[%emt 0:05:32]} 21. fxe4 {[%emt 0:06:15]} dxe4 {[%emt 0:01:43]} 22. b4 {[%emt 0:03:57]} Nc4 {[%emt 0:01:54]} 23. Rxa8 {[%emt 0:03:54]} Bxa8 {[%emt 0:00:13]} 24. Ndxc4 {[%emt 0:00:07]} bxc4 {[%emt 0:00:08]} 25. Nxc4 {[%emt 0:00:42]} Kh8 {[%emt 0:08:06]} 26. Ne3 {[%emt 0:08:15]} f4 {[%emt 0:04:02]} 27. Qg4 {[%emt 0:00:45]} Qf7 {[%emt 0:02:26]} 28. Rf1 {[%emt 0:01:08]} Rg8 {[%emt 0:03:16]} 29. Bb3 {[%emt 0:01:37]} Qxb3 {[%emt 0:07:43]} 30. Qxh5 {[%emt 0:00:06]} Qxc3 {[%emt 0:02:54]} 31. Nf5 {[%emt 0:00:10]} Qc6 {[%emt 0:00:49]} 32. Ne7 {[%emt 0:01:02]} Qe8 {[%emt 0:00:31]} 33. Ng6+ {[%emt 0:00:57]} Kh7 {[%emt 0:00:07]} 34. Nxf4 {[%emt 0:00:20]} Bxd4+ {[%emt 0:01:17]} 35. Kh1 {[%emt 0:00:08]} Qxh5 {[%emt 0:00:14]} 36. Nxh5 {[%emt 0:00:05]} e3 {[%emt 0:00:15]} 37. Bg3 {[%emt 0:00:26]} Re8 {[%emt 0:01:35]} 38. Nf6+ {[%emt 0:00:54]} Bxf6 {[%emt 0:00:05]} 39. Rxf6 {[%emt 0:00:05]} e2 {[%emt 0:00:12]} 40. Be1 {[%emt 0:00:10]} Bd5 {[%emt 0:00:42]} 41. Kg1 {[%emt 0:30:37]} Re7 {[%emt 0:31:11]} 42. Kf2 {[%emt 0:01:07]} Bc4 {[%emt 0:00:35]} 43. Rf4 {[%emt 0:00:55]} Bb5 {[%emt 0:00:19]} 44. g3 {[%emt 0:00:00]} c6 {[%emt 0:00:00]} 45. Kf3 {[%emt 0:00:00]} Rd7 {[%emt 0:00:00]} 46. Kf2 {[%emt 0:00:00]} Kg6 {[%emt 0:00:00]} 47. h4 {[%emt 0:00:00]} h5 {[%emt 0:00:00]} 48. Kf3 {[%emt 0:00:00]} Ra7 {[%emt 0:00:00]} 49. Kf2 {[%emt 0:00:00]} Re7 {[%emt 0:00:00]} 50. Kf3 {[%emt 0:00:00]} Re6 {[%emt 0:00:00]} 51. Kf2 {[%emt 0:00:00]} Bd3 {[%emt 0:00:00]} 52. Rf8 {[%emt 0:00:00]} Bf5 {[%emt 0:00:00]} 53. Bc3 {[%emt 0:00:00]} Bg4 {[%emt 0:00:00]} 54. Be1 {[%emt 0:00:00]} Rd6 {[%emt 0:00:00]} 55. Bc3 {[%emt 0:00:00]} Rd1 {[%emt 0:00:00]} 56. Rf6+ {[%emt 0:00:00]} Kh7 {[%emt 0:00:00]} 57. Be1 {[%emt 0:00:00]} Rc1 {[%emt 0:00:00]} 58. Rf8 {[%emt 0:00:00]} Kg6 {[%emt 0:00:00]} 59. Rf4 {[%emt 0:00:00]} Kg7 {[%emt 0:00:00]} 60. Re4 {[%emt 0:00:00]} Kf6 {[%emt 0:00:00]} 61. Re3 {[%emt 0:00:18]} Rd1 {[%emt 0:00:01]} 62. Rc3 {[%emt 0:00:49]} Rd6 {[%emt 0:00:04]} 63. Rc5 {[%emt 0:01:01]} Ke7 {[%emt 0:01:19]} 64. b5 {[%emt 0:00:11]} Rf6+ {[%emt 0:01:02]} 65. Ke3 {[%emt 0:00:06]} cxb5 {[%emt 0:00:37]} 66. Rxb5 {[%emt 0:00:06]} Rf1 {[%emt 0:00:28]} 67. Kd2 {[%emt 0:00:07]} Ke6 {[%emt 0:00:09]} 68. Rg5 {[%emt 0:01:27]} Rf8 {[%emt 0:00:27]} 69. Ke3 {[%emt 0:00:13]} Rb8 {[%emt 0:00:41]} 70. Rc5 {[%emt 0:00:39]} Kd6 {[%emt 0:00:34]} 71. Ra5 {[%emt 0:00:21]} Rb1 {[%emt 0:00:16]} 72. Kf2 {[%emt 0:00:12]} Rb3 {[%emt 0:00:08]} 73. Ra6+ {[%emt 0:00:20]} Ke5 {[%emt 0:00:11]} 74. Ra5+ {[%emt 0:00:18]} Ke4 {[%emt 0:00:09]} 75. Ra4+ {[%emt 0:00:37]} Kd3 {[%emt 0:00:14]} 76. Ra8 {[%emt 0:00:16]} Kc2 {[%emt 0:00:51]} 77. Rf8 {[%emt 0:00:45]} Rd3 {[%emt 0:00:16]} 78. Rf4 {[%emt 0:00:43]} Kd1 {[%emt 0:00:20]} 79. Bb4 {[%emt 0:00:34]} Rb3 {[%emt 0:00:49]} 80. Be1 {[%emt 0:00:17]} Rd3 {[%emt 0:00:22]} 81. Bb4 {[%emt 0:00:18]} Rd5 {[%emt 0:00:05]} 82. Be1 {[%emt 0:00:13]} Bf5 {[%emt 0:00:20]} 83. Ra4 {[%emt 0:00:51]} Bd3 {[%emt 0:00:21]} 84. Ra1+ {[%emt 0:01:08]} Kc2 {[%emt 0:00:13]} 85. Ra2+ {[%emt 0:00:05]} Kb3 {[%emt 0:00:18]} 86. Ra5 {[%emt 0:00:16]} Bb5 {[%emt 0:00:13]} 87. Ke3 {[%emt 0:01:15]} Rf5 {[%emt 0:02:53]} 88. Ke4 {[%emt 0:00:26]} Rc5 {[%emt 0:00:24]} 89. Kd4 {[%emt 0:00:29]} Rf5 {[%emt 0:01:07]} 90. Ke4 {[%emt 0:00:09]} Rc5 {[%emt 0:00:28]} 91. Kd4 {[%emt 0:00:07]} Rc4+ {[%emt 0:00:10]} 92. Ke3 {[%emt 0:00:16]} Rc5 {[%emt 0:00:47]} 93. Kd4 {[%emt 0:00:06]} 1/2-1/2

[Event "Tatry Open 2018"]
[Site "Tatranska Lomnica"]
[Date "2018.10.05"]
[Round "7"]
[White "Mrvova, Alena"]
[Black "Paulovic, Martin"]
[Result "0-1"]
[ECO "B50"]
[WhiteElo "2200"]
[BlackElo "2052"]
[Annotator "ChessBase"]
[PlyCount "86"]
[EventDate "2018.09.30"]
[EventType "swiss"]
[EventCountry "SVK"]
[SourceTitle "playchess.com"]
[Source "ChessBase"]
[SourceQuality "1"]
[TimeControl "40/5400+30:1800+30"]

1. e4 {[%emt 0:00:00]} c5 {[%emt 0:00:09]} 2. Nf3 {[%emt 0:00:21]} d6 {[%emt 0:03:23]} 3. g3 {[%emt 0:01:42]} Nf6 {[%emt 0:01:30]} 4. Qe2 {[%emt 0:01:18]} Nc6 {[%emt 0:00:16]} 5. c3 {[%emt 0:01:27]} e5 {[%emt 0:01:45]} 6. Bg2 {[%emt 0:01:02]} Be7 {[%emt 0:00:30]} 7. O-O {[%emt 0:00:56]} O-O {[%emt 0:00:41]} 8. d3 {[%emt 0:02:58]} h6 {[%emt 0:06:44]} 9. Na3 {[%emt 0:02:00]} Re8 {[%emt 0:15:09]} 10. Nc4 {[%emt 0:01:44]} Bf8 {[%emt 0:00:35]} 11. Ne3 {[%emt 0:00:30]} Be6 {[%emt 0:08:40]} 12. Nd2 {[%emt 0:06:09]} d5 {[%emt 0:01:58]} 13. f4 {[%emt 0:03:12]} d4 {[%emt 0:10:24]} 14. Nc2 {[%emt 0:03:22]} exf4 {[%emt 0:11:24]} 15. gxf4 {[%emt 0:00:37]} Bg4 {[%emt 0:00:47]} 16. Bf3 {[%emt 0:00:13]} Bh3 {[%emt 0:08:47]} 17. Rf2 {[%emt 0:01:01]} Nd5 {[%emt 0:02:24]} 18. Nc4 {[%emt 0:04:26]} dxc3 {[%emt 0:04:14]} 19. bxc3 {[%emt 0:07:20]} Nxc3 {[%emt 0:00:34]} 20. Qd2 {[%emt 0:00:05]} Nb5 {[%emt 0:00:51]} 21. Bg2 {[%emt 0:06:55]} Bxg2 {[%emt 0:01:16]} 22. Rxg2 {[%emt 0:00:10]} Nbd4 {[%emt 0:00:07]} 23. Ne1 {[%emt 0:00:05]} Qh4 {[%emt 0:00:52]} 24. Qd1 {[%emt 0:04:58]} Rad8 {[%emt 0:01:01]} 25. Bd2 {[%emt 0:01:11]} b5 {[%emt 0:03:36]} 26. Ne3 {[%emt 0:04:15]} c4 {[%emt 0:02:57]} 27. Nd5 {[%emt 0:02:53]} Rd6 {[%emt 0:06:18]} 28. Nc7 {[%emt 0:05:56]} Rc8 {[%emt 0:00:27]} 29. Nd5 {[%emt 0:01:29]} Re8 {[%emt 0:00:06]} 30. Nc7 {[%emt 0:02:35]} Rc8 {[%emt 0:00:07]} 31. Nd5 {[%emt 0:05:14]} f5 {[%emt 0:01:11]} 32. Ne3 {[%emt 0:03:44]} fxe4 {[%emt 0:02:07]} 33. dxc4 {[%emt 0:00:50]} Nf3+ {[%emt 0:02:38]} 34. Nxf3 {[%emt 0:00:07]} exf3 {[%emt 0:00:03]} 35. Qxf3 {[%emt 0:00:20]} Nd4 {[%emt 0:00:08]} 36. Qb7 {[%emt 0:00:22]} Re8 {[%emt 0:00:48]} 37. Ng4 {[%emt 0:02:10]} Ne2+ {[%emt 0:00:46]} 38. Kh1 {[%emt 0:03:21]} Rxd2 {[%emt 0:00:08]} 39. Qxb5 {[%emt 0:00:05]} Red8 {[%emt 0:01:24]} 40. Qb3 {[%emt 0:00:15]} R8d3 {[%emt 0:01:20]} 41. Qa4 {[%emt 0:30:55]} Nc3 {[%emt 0:16:50]} 42. Nxh6+ {[%emt 0:00:00]} Qxh6 {[%emt 0:01:16]} 43. Qxa7 {[%emt 0:00:00]} Rxg2 {[%emt 0:01:21]} 0-1

[Event "Tatry Open 2018"]
[Site "Tatranska Lomnica"]
[Date "2018.10.05"]
[Round "7"]
[White "Sosovicka, Jakub"]
[Black "Mrva, Martin"]
[Result "0-1"]
[ECO "B00"]
[WhiteElo "2140"]
[BlackElo "2430"]
[Annotator "RC"]
[PlyCount "64"]
[EventDate "2018.09.30"]
[EventType "swiss"]
[EventCountry "SVK"]
[SourceTitle "playchess.com"]
[Source "ChessBase"]
[SourceQuality "1"]
[TimeControl "40/5400+30:1800+30"]

1. e4 {[%emt 0:00:00]} d6 {[%emt 0:01:26]} 2. d4 {[%emt 0:00:00]} a6 {[%emt 0:00:18]} 3. f4 {[%emt 0:16:17]} c5 {[%emt 0:01:53]} 4. Nf3 {[%emt 0:04:49]} cxd4 {[%emt 0:06:00]} 5. Nxd4 {[%emt 0:02:40]} e5 {[%emt 0:09:03]} 6. Nf3 {[%emt 0:02:59]} Nf6 {[%emt 0:01:45]} 7. Nc3 {[%emt 0:03:58]} Nbd7 {[%emt 0:05:52]} 8. a4 {[%emt 0:02:06]} Be7 {[%emt 0:10:42]} 9. Bc4 {[%emt 0:01:12]} O-O {[%emt 0:05:35]} 10. O-O {[%emt 0:01:15]} b6 {[%emt 0:01:56]} 11. Nd5 {[%emt 0:17:33]} Bb7 {[%emt 0:00:38]} 12. Nxf6+ {[%emt 0:07:19]} Nxf6 {[%emt 0:02:25]} 13. fxe5 {[%emt 0:02:20]} Nxe4 {[%emt 0:00:37]} 14. Bd5 {[%emt 0:06:10]} Qc7 {[%emt 0:00:08]} 15. Be3 {[%emt 0:07:30]} Rad8 {[%emt 0:05:09]} 16. e6 {[%emt 0:03:23]} fxe6 {[%emt 0:04:58]} 17. Bxe6+ {[%emt 0:00:03]} Kh8 {[%emt 0:00:15]} 18. Qd4 {[%emt 0:10:09]} d5 {[%emt 0:02:49]} 19. Qe5 {[%emt 0:06:11]} Bd6 {[%emt 0:11:51]} 20. Qh5 {[%emt 0:00:43]} Bc5 {[%emt 0:11:09]} 21. Ne5 {[%emt 0:03:04]} Bxe3+ {[%emt 0:11:23]} 22. Kh1 {[%emt 0:00:01]} Rf6 {[%emt 0:01:36]} 23. Nf7+ {[%emt 0:01:08]} Rxf7 {[%emt 0:00:12]} 24. Rxf7 {[%emt 0:00:04]} Qc6 {[%emt 0:01:28]} 25. Raf1 {[%emt 0:00:58]} Qxe6 {[%emt 0:01:45]} 26. Rf8+ {[%emt 0:00:08]} Qg8 {[%emt 0:00:05]} 27. Rxg8+ {[%emt 0:00:13]} Rxg8 {[%emt 0:00:10]} 28. Rf3 {[%emt 0:00:51]} Bc5 {[%emt 0:00:17]} 29. h3 {[%emt 0:00:36]} a5 {[%emt 0:01:08]} 30. Qf7 {[%emt 0:00:33]} Ba8 {[%emt 0:00:37]} 31. Rf4 {[%emt 0:00:34]} Bd6 {[%emt 0:00:40]} 32. Rh4 {[%emt 0:00:16]} Rf8 {[%emt 0:00:12]} 0-1